Cogmind - Beta 16.1 @@@ ROGUE MODE // 2026.03.28 @ 13:48:37 Player: APerTAS Result: Core destroyed Performance ------------- Evolutions (0) 0 Regions Visited (1) 200 Robots Destroyed (29) 145 Value Destroyed (697) 697 Prototype IDs (0) 0 Alien Tech Used (0) 0 Bonus (0) 0 TOTAL SCORE: 1042 Bonus ------- None Cogmind --------- Core Integrity 0/250 Matter 300/300 Energy 100/100 System Corruption 2% Temperature Cool (0) Movement Core (50) Location -10/Materials Parts ------- > --- POWER (1) -------- (None) > --- PROPULSION (2) --- (None) > --- UTILITY (2) ------ (None) > --- WEAPON (2) ------- (None) > --- INVENTORY (5) ---- Ion Engine Scrap Shield Small Laser Small Laser Peak State ------------ > --- POWER ------------ Ion Engine > --- PROPULSION ------- Light Treads Light Treads > --- UTILITY ---------- Huge Storage Unit Seismic Detector > --- WEAPON ----------- Assault Rifle Light Cannon > --- INVENTORY -------- Ion Engine Light Ion Engine Wheel Wheel Heat Sink Medium Laser Small Laser Small Laser Light Cannon Datajack [Rating: 8] Favorites ----------- Power Ion Engine Engine Ion Engine Propulsion Light Treads Treads Light Treads Wheel Wheel Utility Seismic Detector Device Seismic Detector Storage Huge Storage Unit Weapon Assault Rifle Energy Gun Medium Laser Ballistic Gun Assault Rifle Ballistic Cannon Light Cannon Build | -11 -10 ------- Run | Yrd Mat Slots Evolved . | . . Power . | . . Propulsion . | . . Utility . | . . Weapon . | . . Parts Attached 15 | 7 8 Power 2 | 1 1 Engine 2 | 1 1 Core . | . . Reactor . | . . Propulsion 4 | 2 2 Treads 2 | 2 . Leg . | . . Wheel 2 | . 2 Hover . | . . Flight . | . . Utility 3 | 2 1 Device 1 | 1 . Storage 2 | 1 1 Processor . | . . Hackware . | . . Protection . | . . Artifact . | . . Weapon 6 | 2 4 Energy Gun 1 | 1 . Energy Cannon . | . . Ballistic Gun 4 | 1 3 Ballistic Cannon 1 | . 1 Launcher . | . . Special Weapon . | . . Impact Weapon . | . . Slashing Weapon . | . . Piercing Weapon . | . . Special Melee Weapon . | . . Unidentified Prototypes . | . . Parts Lost 5 | . 5 Power . | . . Propulsion 3 | . 3 Utility . | . . Weapon 2 | . 2 Highest Loss Streak 3 | . 3 To Critical Strikes . | . . Average Backups 8 | 2 8 Power 1 | . 1 Propulsion 1 | 1 1 Utility . | . . Weapon 3 | . 3 Tool/Special . | . . Unused Backups 7 | . 7 Power 1 | . 1 Propulsion . | . . Utility 2 | . 2 Weapon 3 | . 3 Tool/Special 1 | . 1 Average Slot Usage (%) 98 | . 98 Engine 13 | . 13 Treads 23 | . 23 Wheel 3 | . 3 Device 13 | . 13 Storage 13 | . 13 Energy Gun 1 | . 1 Ballistic Gun 21 | . 21 Ballistic Cannon 5 | . 5 Peak Build Rating 8 | 7 8 Average Rating 7 | 5 7 On Entrance 3 | . 7 Avg Prop Armor Cover (%) . | . . Naked Turns 9 | . 9 Heaviest Build 91 | 14 91 Greatest Support 40 | 40 40 Greatest Overweight (x) 4 | . 4 Average Overweight (x) 1 | . 1 Largest Inventory Capacity 25 | 8 25 Average Capacity 21 | 7 23 Most Carried 13 | 4 13 Average Carried 8 | 2 9 Final Capacity 8 | 8 5 Final Carried 5 | 4 5 Class Distribution -------------------- 94% | Mutant 5% | Scavenger-Mutant Dominant Class ---------------- Mutant | -10/Materials Resources | -11 -10 ----------- Run | Yrd Mat Matter Collected 719 | 274 445 Remotely . | . . Salvage Created 952 | 94 858 Parts 55 | 6 49 Haulers Intercepted . | . . Recyclers Shooed . | . . Parts Field Recycled . | . . Retrieved Matter . | . . Parts Self-Destructed . | . . Prevented . | . . Parts Restored . | . . Kills | -11 -10 ------- Run | Yrd Mat Combat Hostiles Destroyed 22 | . 22 Guns 16 | . 16 Cannons 6 | . 6 Classes Destroyed 8 | 2 6 Worker 3 | . 3 Tunneler 1 | 1 . Recycler 1 | 1 . Operator 1 | . 1 Watcher 1 | . 1 Swarmer 6 | . 6 Grunt 15 | . 15 Subdweller 1 | . 1 Best Kill Streak 8 | 2 8 Combat Bots Only 3 | . 3 Max Kills in Single Turn 2 | 1 2 Gunslinging 1 | . 1 Exploded . | . . Melee . | . . Uniques/NPCs Destroyed . | . . Combat | -11 -10 -------- Run | Yrd Mat Hostile Shots Fired 109 | . 109 Missed 24 | . 24 Hits 85 | . 85 Projectile 85 | . 85 Damage Taken 1009 | . 1009 Core 260 | . 260 Absorbed by Shields . | . . Core Remaining (%) 100 | 100 . Volleys Fired 78 | 4 74 Largest 2 | 2 2 Hottest 70 | 70 70 Shots Fired 156 | 8 148 Gun 138 | 8 130 Cannon 18 | . 18 Launcher . | . . Special . | . . Kinetic 147 | 4 143 Thermal 9 | 4 5 Explosive . | . . Electromagnetic . | . . Robot Hit Streak 14 | 5 14 Robot Miss Streak 3 | 1 3 Penetration Max . | . . Secondary Targets 6 | . 6 Max Gunslinging Chain 1 | . 1 Shots Hit Robots 107 | 6 101 Core Hits 43 | 3 40 Critical Kills 2 | . 2 Critical Parts Destroyed . | . . Critical Strikes 3 | . 3 Destroy 2 | . 2 Blast 1 | . 1 Melee Attacks . | . . Impact . | . . Slashing . | . . Piercing . | . . Sneak Attacks . | . . Combat Hostiles . | . . Follow-up Attacks . | . . Damage Inflicted 1220 | 70 1150 Guns 998 | 70 928 Cannons 174 | . 174 Explosions . | . . Melee . | . . Ramming 48 | . 48 Kinetic 1085 | 20 1065 Thermal 87 | 50 37 Explosive . | . . Electromagnetic . | . . Impact . | . . Slashing . | . . Piercing . | . . Highest Corruption 2 | . 2 Average Corruption 2 | . 2 Corruption Purged . | . . Corruption Blocked . | . . Overload Shots . | . . Overflow Damage . | . . Projectiles . | . . Explosions . | . . Melee . | . . Knockbacks 1 | . 1 Impact . | . . Kinetic 1 | . 1 Secondary . | . . Self-Inflicted Damage 48 | . 48 Shots . | . . Rammed . | . . Targets Rammed . | . . Kicked . | . . Crushed . | . . Highest Temperature 50 | 50 50 Average Temperature 13 | 24 11 Received Heat Transfer 366 | . 366 Siege Activations . | . . Martial Activations . | . . Shielding Activations . | . . Robots Disrupted . | . . Combat Hostiles . | . . Robots Corrupted . | . . Combat Hostiles . | . . Parts Fried . | . . Impact Corruptions . | . . Robots Melted . | . . Combat Hostiles . | . . Parts Melted . | . . Heat Transferred 259 | 148 111 Parts Sabotaged . | . . Parts Stolen . | . . Parts Stripped . | . . Power Chain Reactions . | . . Alert | -11 -10 ------- Run | Yrd Mat Maximum Alert Level 1 | . 1 Low Security (%) 95 | 100 94 Level 1 4 | . 5 Level 2 . | . . Level 3 . | . . Level 4 . | . . Level 5 . | . . High Security . | . . Max Security . | . . Peak Influence 223 | 5 223 Initial . | . . Average 90 | 1 102 Influence Increases 552 | 10 542 Destroy 0b10 Robot/C 420 | . 420 Destroy 0b10 Robot/NC 35 | 10 25 Destroy Leader 92 | . 92 Successful Hack 5 | . 5 Influence Decreases 355 | 10 345 Time Decay 305 | 10 295 Lost Part 50 | . 50 Squads Dispatched 4 | . 4 Investigation 2 | . 2 Extermination . | . . Reinforcement 2 | . 2 Assault . | . . Garrison . | . . Intercept . | . . Searches Triggered . | . . Construction Impeded . | . . Haulers Reinforced . | . . Active Scanning Responses . | . . Cargo Convoy Interrupts . | . . Stealth | -11 -10 --------- Run | Yrd Mat Distress Signals 1 | . 1 Communications Jammed . | . . Distress Signals . | . . Times Spotted 32 | . 32 Peak Tracking Total 6 | . 6 Tactical Retreats . | . . Traps | -11 -10 ------- Run | Yrd Mat Traps Triggered 2 | . 2 Indirectly . | . . Trap Hack Attempts . | . . Triggered . | . . Disarmed . | . . Reprogrammed . | . . Reused . | . . Traps Extracted . | . . Installed . | . . Triggered . | . . Machines | -11 -10 ---------- Run | Yrd Mat Machines Disabled . | . . Max in Single Turn . | . . Machines Repaired . | . . Machines Dismantled . | . . Machines Sabotaged . | . . Overloaded Fab Kills . | . . Hacking | -11 -10 --------- Run | Yrd Mat Machines Accessed 1 | . 1 Terminals 1 | . 1 Fabricators . | . . Repair Stations . | . . Recycling Units . | . . Scanalyzers . | . . Garrison Access . | . . Total Hacks 5 | . 5 Successful 2 | . 2 Failed 3 | . 3 Catastrophic . | . . Database Lockouts . | . . Manual 5 | . 5 Terminals 5 | . 5 Fabricators . | . . Repair Stations . | . . Recycling Units . | . . Scanalyzers . | . . Garrison Access . | . . Terminal Hacks 1 | . 1 Terminal Index 1 | . 1 Fabricator Hacks . | . . Repair Station Hacks . | . . Recycling Unit Hacks . | . . Scanalyzer . | . . Garrison Access Hacks . | . . Unauthorized Hacks 1 | . 1 Terminals 1 | . 1 Botnet 1 | . 1 Fabricators . | . . Repair Stations . | . . Recycling Units . | . . Scanalyzers . | . . Garrison Access . | . . Data Cores Recovered . | . . Used . | . . Hacking Detections 1 | . 1 Full Trace Events . | . . Feedback Events . | . . Feedback Blocked . | . . Robot Schematics Acquired . | . . Robots Built . | . . Authchips . | . . Time . | . . Total Robot Build Rating . | . . Part Schematics Acquired . | . . Parts Built . | . . Authchips . | . . Time . | . . Total Part Build Rating . | . . Part Studies Acquired . | . . Parts Repaired . | . . Time . | . . Parts Recycled . | . . Recycled Matter . | . . Retrieved Matter . | . . Retrieved Components . | . . Parts Scanalyzed . | . . Part Schematics Acquired . | . . Parts Damaged . | . . Bothacking | -11 -10 ------------ Run | Yrd Mat Used RIF Installer . | . . Robots Hacked . | . . Non-combat . | . . Combat . | . . Robot Hacks Applied . | . . Relay Couplers Released . | . . Fabnet Peak Effective % . | . . Robots Rewired . | . . Allies Hacked . | . . Hacks Repelled . | . . Allies | -11 -10 -------- Run | Yrd Mat Total Allies . | . . Largest Group . | . . Highest-Rated Group . | . . Highest-Rated Ally . | . . Total Orders . | . . Ally Attacks . | . . Total Damage . | . . Kills . | . . Allies Corrupted . | . . Allies Melted . | . . Intel | -11 -10 ------- Run | Yrd Mat Active Infowar (turns) 817 | 35 782 Seismic 817 | 35 782 Robot Analysis Total . | . . Derelict Logs Recovered . | . . Drone Launches . | . . Drone Recoveries . | . . Exploration | -11 -10 ------------- Run | Yrd Mat Turns Passed 902 | 111 791 Spaces Moved 250 | 57 193 Core 6 | 4 2 Treads 216 | 53 163 Legs . | . . Wheels 28 | . 28 Hover . | . . Flight . | . . Fastest Speed 50 | 50 50 Average Speed 230 | 152 252 Slowest Speed 320 | 160 320 Overloaded Moves . | . . Propulsion Burnouts . | . . Robots Hopped . | . . Potential Cave-ins . | . . Cave-ins Triggered . | . . Exploration Rate (%) 23 | 4 42 Regions Visited 1 Branch Regions . Pre-discovered Areas . | . . Known Exits Taken . | . . Unknown Exits Taken 1 | 1 . Scrap Searched . | . . Spaces Dug . | . . Terrain Destroyed . | . . Melee . | . . Projectile . | . . AOE . | . . Terrain Rammed 8 | . 8 Walls Destroyed . | . . Machines Disabled . | . . Actions | -11 -10 --------- Run | Yrd Mat Total 426 | 71 355 Wait 58 | . 58 Move 249 | 56 193 Hop . | . . Pick Up 11 | 4 7 Fast Attach 7 | 7 . Attach 4 | . 4 Detach . | . . Swap 11 | . 11 Drop 1 | . 1 Fire 78 | 4 74 Melee . | . . Ram 7 | . 7 Kick . | . . Crush . | . . Escape Stasis . | . . Rewire . | . . Trap . | . . Miscellaneous . | . . Route ------- -11/Scrapyard -10/Materials (discovered 1 exit: [*Min]) History --------- Turn | Location | Event 18 | -11/Scrapyard | Discovered new exit (range 16) 112 | -11/Scrapyard | Entered Materials 330 | -10/Materials | Build established: Mutant 448 | -10/Materials | Discovered new exit (range 12) 612 | -10/Materials | Derelicts attacked the area 815 | -10/Materials | Core integrity fell below 50% 894 | -10/Materials | Released all parts (6) 898 | -10/Materials | Core integrity fell below 20% 903 | -10/Materials | Core destroyed Last Messages --------------- 00884_ K-01 Serf collects debris. 00885_ Lgt. Treads destroyed. 00891_ Wheel destroyed. 00892_ G-34 Mercenary destroyed. 00894_ Released Lgt. Assault Rifle. 00894_ Released Huge Storage Unit. 00894_ Released Seismic Detector. 00894_ Released Ion Engine. 00894_ Released Wheel. 00894_ Released Lgt. Assault Rifle. 00894_ Acquired 25 matter. 00896_ Slammed into Wall. 00896_ Destabilizing: Core damaged (-7). 00896_ Destabilizing: Core damaged (-10). 00897_ Slammed into Wall. 00898_ Destabilizing: Core damaged (-7). 00899_ Slammed into Wall. 00902_ Destabilizing: System corrupted (+2). 00903_ Slammed into Wall. 00903_ Destabilizing: Core damaged (-12). Map ----- +----------------------------------------------------+ | #???????????????????????????????????????????? | | #???????????????????????????????????????????? | | #???????????????????????????????????????????? | | #???????????????????????????????????????????? | | #???????????????????????????????????????????? | | #???????????????????????????????????????????? | | #???????????????????????????????????????????? | | +#####???????????????????????????????????????????? | | #?????????????????????????????????????????????? | | #?????????????????????????????????????????????? | | #??????????????? ??????????????????????????? | | #??????????????? #?????????????????????????? | | #??????????????? +?????????????????????????? | | ##??????????????? #?????????????????????????? | | #???????????????? #?????????????????????????? | | #???????????????? #?????????????????????????? | | #????????????????# #?????????????????????????? | | !=##???????????????# #?????????????????????????? | | % !#???????????????# #?????????????????????????? | | %= ################# ######????????????????????? | | % =%= !%%[ # #????????????????????? | | * =########## !% # = #????????????????????? | | = #????????# #[!*[#????????????????????? | | %###????????# #!]*!#????????????????????? | | %#????????#?# & #][!/#????????????????????? | | #????????# # """% #!@%%#??#####?????????????? | | #????????# """ *###+### #?????????????? | | %#????????# # """ =%=*[= #?????????????? | | =#????????### [% [ #?????????????? | | [#??????????# *%= #?????????????? | | #??????????######### ###### #?????????????? | | =#??????????????????# T#????##+###?????????????? | | #??????????????????# ##???????????????????????? | | *#??????????????????# #????????????????????????? | | !#??????????????????# #????????????????????????? | | #??????????????????# #????????????????????????? | | #??????????????????# T????????????????????????? | | #??????????????????# #????????????????????????? | | #??????????????????# #????????????????????????? | | /#######????????????# #????????????????????????? | | ! #????????????# #????????????????????????? | | #????????????# #????????????????????????? | | #????????????# #????????????????????????? | | % #????????????# ?????????????????????????? | | ########????????????# ?????????????????????????? | | #######?????????????? ?????????????????????????? | | #??????????????????????????????????????????? | | """ #??????????????????????????????????????????? | | """ #??????????????????????????????????????????? | | """ #??????????????????????????????????????????? | +----------------------------------------------------+ Best States ------------- Heat Dissipation 25 Energy Generation 10 Energy Capacity 250 Matter Stores 300 Matter Capacity 300 Sight Range 16 Terrain Scan Density 10 Evasion (%) 40 Recoil Reduction 2 Item Schematics ----------------- None Robot Schematics ------------------ None Fabricated ------------ Nothing Repaired ---------- Nothing Studied --------- None Alien Tech Used ----------------- None Achievements -------------- None Challenges ------------ None Game ------ Seed SapperDiametricCorpse Manual? 0 Play Time 00:25:52 Cumulative 62.1 hours Start 2026.03.28 @ 13:12:47 End 2026.03.28 @ 13:48:37 Sessions 3 Manual Loads 0 Difficulty Rogue Special Mode None Game No. 194 Rogue 194 Adventurer 0 Explorer 0 Win Type - Total 0 Types 0/0/0/0/0/0/0/0/0/0 Lore% 62 Gallery% 36 Achievement% 36 Wizard Run 0 Options --------- Layout 0 ASCII 0 Keyboard 1 Movement Arrows Keybinds 0 Fullscreen 1 Font 24/Terminus Map View 64x52 Zoom Use 0% Tactical HUD 1 Map Filters NONE Filters NONE Steam 1 RUN: 16ab63a4-39ad-42e3-acb6-a787eb5af317